fUSD/lending_fUSD_20240125
["ID","MTS","AMOUNT","RATE_DAILY","PERIOD"]
[312720860,1706188927388,-594.79,0.00051232,31]
[312720861,1706188927422,-500.0,0.00051232,31]
[312720862,1706188927463,-611.77,0.00051232,31]
[312720863,1706188927499,-502.34,0.00051232,31]
[312720864,1706188927533,-500.0,0.00051232,31]
[312720865,1706188927571,-513.18,0.00051232,31]
[312720866,1706188927607,-549.63,0.00051232,31]
[312720867,1706188927642,-591.91,0.00051232,31]
[312720868,1706188927676,-500.0,0.00051232,31]
[312720869,1706188927711,-500.0,0.00051232,31]
[312720870,1706188927747,-892.35,0.00051232,31]
[312720871,1706188927781,-565.29,0.00051232,31]
[312720872,1706188927814,-500.0,0.00051232,31]
[312720873,1706188927847,-500.0,0.00051232,31]
[312720874,1706188927882,-500.0,0.00051232,31]
[312720875,1706188927915,-500.0,0.00051232,31]
[312720876,1706188927949,-500.0,0.00051232,31]
[312720877,1706188927982,-696.05,0.00051232,31]
[312720878,1706188928014,-503.96,0.00051232,31]
[312720879,1706188928047,-522.31094885,0.00051232,31]
[312720880,1706188928080,-500.0,0.00051232,31]
[312720881,1706188928115,-1045.18,0.00051232,31]
[312720882,1706188928149,-500.0,0.00051232,31]
[312720883,1706188928183,-500.0,0.00051232,31]
[312720884,1706188928218,-505.83,0.00051232,31]
[312720885,1706188928255,-500.0,0.00051232,31]
[312720886,1706188928289,-569.95,0.00051232,31]
[312720887,1706188928324,-616.19,0.00051232,31]
[312720888,1706188928358,-500.0,0.00051232,31]
[312720889,1706188928393,-500.0,0.00051232,31]
[312720890,1706188928428,-1085.14,0.00051232,31]
[312720891,1706188928462,-740.01,0.00051232,31]
[312720892,1706188928499,-226.03442056,0.00051232,31]
[312720893,1706188928535,-8322.88,0.00051232,31]
[312720894,1706188928576,-658.74,0.00051232,31]
[312720895,1706188928610,-728.72,0.00051232,31]
[312720896,1706188928643,-500.0,0.00051232,31]
[312720897,1706188928677,-500.0,0.00051232,31]
[312720898,1706188928712,-1240.04,0.00051232,31]
[312720899,1706188928745,-1773.53,0.00051232,31]
[312720900,1706188928779,-599.04,0.00051232,31]
[312720901,1706188928812,-808.35,0.00051232,31]
[312720902,1706188928846,-605.14,0.00051232,31]
[312720903,1706188928880,-500.0,0.00051232,31]
[312720904,1706188928912,-500.0,0.00051232,31]
[312720905,1706188928944,-880.58,0.00051232,31]
[312720906,1706188928977,-299.26590878,0.00051232,31]
[312720907,1706188929011,-903.12,0.00051232,31]
[312720908,1706188929043,-545.45,0.00051232,31]
[312720909,1706188929078,-500.0,0.00051232,31]
[312720910,1706188929116,-3577.61,0.00051232,31]
[312720911,1706188929152,-500.0,0.00051232,31]
[312720912,1706188929187,-685.58,0.00051232,31]
[312720913,1706188929224,-562.88,0.00051232,31]
[312720914,1706188929258,-952.48,0.00051232,31]
[312720915,1706188929293,-500.0,0.00051232,31]
[312720916,1706188929329,-500.0,0.00051232,31]
[312720917,1706188929363,-818.92,0.00051232,31]
[312720918,1706188929396,-567.03,0.00051232,31]
[312720919,1706188929431,-500.0,0.00051232,31]
[312720920,1706188929466,-702.34,0.00051232,31]
[312720921,1706188929500,-500.0,0.00051232,31]
[312720922,1706188929538,-506.1,0.00051232,31]
[312720923,1706188929574,-529.03,0.00051232,31]
[312720924,1706188929609,-919.78,0.00051232,31]
[312720925,1706188929643,-682.14,0.00051232,31]
[312720926,1706188929823,-500.0,0.00051232,31]
[312720927,1706188929859,-500.0,0.00051232,31]
[312720928,1706188929893,-500.0,0.00051232,31]
[312720929,1706188929927,-1207.59,0.00051232,31]
[312720930,1706188929961,-500.0,0.00051232,31]
[312720931,1706188929995,-575.64,0.00051232,31]
[312720932,1706188930028,-500.0,0.00051232,31]
[312720933,1706188930061,-500.0,0.00051232,31]
[312720934,1706188930097,-500.0,0.00051232,31]
[312720935,1706188930135,-1305.94,0.00051232,31]
[312720936,1706188930170,-945.14,0.00051232,31]
[312720937,1706188930207,-668.31,0.00051232,31]
[312720938,1706188930245,-500.0,0.00051232,31]
[312720939,1706188930283,-538.49,0.00051232,31]
[312720940,1706188930321,-919.42,0.00051232,31]
[312720941,1706188930359,-500.0,0.00051232,31]
[312720942,1706188930399,-621.93,0.00051232,31]
[312720943,1706188930435,-631.77064752,0.00051232,31]
[312720944,1706188930472,-1198.03,0.00051232,31]
[312720945,1706188930511,-791.89,0.00051232,31]
[312720946,1706188930546,-500.0,0.00051232,31]
[312720947,1706188930583,-1243.05,0.00051232,31]
[312720948,1706188930617,-500.0,0.00051232,31]
[312720949,1706188930650,-500.0,0.00051232,31]
[312720950,1706188930685,-500.0,0.00051232,31]
[312720951,1706188930718,-558.35,0.00051232,31]
[312720952,1706188930750,-500.0,0.00051232,31]
[312720953,1706188930783,-500.0,0.00051232,31]
[312720954,1706188930816,-500.0,0.00051232,31]
[312720955,1706188930850,-517.3,0.00051232,31]
[312720956,1706188930885,-720.97,0.00051232,31]
[312720957,1706188930920,-689.62,0.00051232,31]
[312720958,1706188930954,-500.0,0.00051232,31]
[312720959,1706188930988,-2344.2,0.00051232,31]
[312720960,1706188931023,-504.11,0.00051232,31]
[312720961,1706188931057,-500.0,0.00051232,31]
[312720962,1706188931090,-691.44,0.00051232,31]
[312720963,1706188931123,-1094.16,0.00051232,31]
[312720964,1706188931157,-550.56,0.00051232,31]
[312720965,1706188931195,-500.0,0.00051232,31]
[312720966,1706188931236,-900.04,0.00051232,31]
[312720967,1706188931282,-518.45,0.00051232,31]
[312720968,1706188931326,-900.8,0.00051232,31]
[312720969,1706188931368,-500.76,0.00051232,31]
[312720970,1706188931408,-500.0,0.00051232,31]
[312720971,1706188931446,-521.94,0.00051232,31]
[312720972,1706188931484,-500.0,0.00051232,31]
[312720973,1706188931523,-500.0,0.00051232,31]
[312720974,1706188931561,-890.01,0.00051232,31]
[312720975,1706188931598,-634.63,0.00051232,31]
[312720976,1706188931639,-500.0,0.00051232,31]
[312720977,1706188931674,-500.0,0.00051232,31]
[312720978,1706188931708,-500.0,0.00051232,31]
[312720979,1706188931744,-1000.0,0.00051232,30]
[312720980,1706188931780,-4298.96,0.00051232,31]
[312720981,1706188931816,-500.0,0.00051232,31]
[312720982,1706188931852,-500.0,0.00051232,31]
[312720983,1706188931888,-342.8419286,0.00051232,31]
[312720984,1706188931922,-500.0,0.00051232,31]
[312720985,1706188931960,-500.0,0.00051232,31]
[312720986,1706188931993,-834.57,0.00051232,31]
[312720987,1706188932027,-500.0,0.00051232,31]
[312720988,1706188932063,-500.0,0.00051232,31]
[312720989,1706188932101,-2659.22,0.00051232,31]
[312720990,1706188932137,-500.0,0.00051232,31]
[312720991,1706188932173,-706.5,0.00051232,31]
[312720992,1706188932210,-502.47,0.00051232,31]
[312720993,1706188932246,-511.82,0.00051232,31]
[312720994,1706188932281,-500.0,0.00051232,31]
[312720995,1706188932316,-735.0,0.00051232,31]
[312720996,1706188932350,-585.04901258,0.00051232,31]
[312720997,1706188932391,-500.0,0.00051232,31]
[312720998,1706188932425,-650.71,0.00051232,31]
[312720999,1706188932460,-515.77,0.00051232,31]
[312721000,1706188932498,-500.0,0.00051232,31]
[312721001,1706188932533,-2609.6,0.00051232,31]
[312721002,1706188932568,-1043.27,0.00051232,31]
[312721003,1706188932601,-2040.87,0.00051232,31]
[312721004,1706188932636,-500.0,0.00051232,31]
[312721005,1706188932671,-626.01,0.00051232,31]
[312721006,1706188932705,-500.0,0.00051232,31]
[312721007,1706188932738,-500.0,0.00051232,31]
[312721008,1706188932770,-453.0,0.00051357,30]
[312721009,1706188932802,-1405.25866734,0.00051406,75]
[312721010,1706188932836,-150.0,0.0005141,30]
[312721011,1706188932869,-100000.0,0.000515,30]
[312721012,1706188932904,-274.00000045,0.000515,120]
[312721013,1706188932937,-1224.41,0.00051506,31]
[312721014,1706188932976,-551.45,0.00051506,31]
[312721015,1706188933010,-500.0,0.00051506,31]
[312721016,1706188933046,-1626.34,0.00051506,31]
[312721017,1706188933081,-2576.58,0.00051506,31]
[312721018,1706188933115,-500.0,0.00051506,31]
[312721019,1706188933151,-500.0,0.00051506,31]
[312721020,1706188933185,-500.0,0.00051506,31]
[312721021,1706188933219,-500.0,0.00051506,31]
[312721022,1706188933252,-500.0,0.00051506,31]
[312721023,1706188933286,-500.0,0.00051506,31]
[312721024,1706188933319,-500.0,0.00051506,31]
[312721025,1706188933352,-500.0,0.00051506,31]
[312721026,1706188933387,-687.4,0.00051506,31]
[312721027,1706188933420,-493.16772451,0.00051506,31]
[312721028,1706188933455,-500.0,0.00051506,31]
[312721029,1706188933662,-500.0,0.00051506,31]
[312721030,1706188933697,-500.0,0.00051506,31]
[312721031,1706188933733,-624.67,0.00051506,31]
[312721032,1706188933768,-500.0,0.00051506,31]
[312721033,1706188933803,-500.0,0.00051506,31]
[312721034,1706188933836,-500.0,0.00051506,31]
[312721035,1706188933870,-500.0,0.00051506,31]
[312721036,1706188933901,-500.0,0.00051506,31]
[312721037,1706188933936,-500.0,0.00051506,31]
[312721038,1706188933971,-500.0,0.00051506,31]
[312721039,1706188934003,-500.0,0.00051506,31]
[312721040,1706188934037,-500.0,0.00051506,31]
[312721041,1706188934182,-500.0,0.00051506,31]
[312721042,1706188934218,-543.47,0.00051506,31]
[312721043,1706188934252,-500.0,0.00051506,31]
[312721044,1706188934285,-500.0,0.00051506,31]
[312721045,1706188934319,-605.46846113,0.00051506,31]
[312721046,1706188934352,-511.97,0.00051506,31]
[312721047,1706188934387,-500.0,0.00051506,31]
[312721048,1706188934420,-500.0,0.00051506,31]
[312721049,1706188934454,-500.0,0.00051506,31]
[312721050,1706188934489,-500.0,0.00051506,31]
[312721051,1706188934522,-500.0,0.00051506,31]
[312721052,1706188934554,-500.0,0.00051506,31]
[312721053,1706188934587,-500.0,0.00051506,31]
[312721054,1706188934618,-500.0,0.00051506,31]
[312721055,1706188934650,-604.8412091,0.00051506,31]
[312721056,1706188934682,-577.43444768,0.00051506,31]
[312721057,1706188934715,-500.0,0.00051506,31]
[312721058,1706188934747,-500.0,0.00051506,31]
[312721059,1706188934779,-500.0,0.00051506,31]
[312721060,1706188934822,-500.0,0.00051506,31]
[312721061,1706188934857,-520.94,0.00051506,31]
[312721062,1706188934891,-674.26,0.00051506,31]
[312721063,1706188934925,-500.0,0.00051506,31]
[312721064,1706188934957,-500.0,0.00051506,31]
[312721065,1706188934990,-500.0,0.00051506,31]
[312721066,1706188935023,-500.0,0.00051506,31]
[312721067,1706188935061,-500.0,0.00051506,31]
[312721068,1706188935098,-388.16202862,0.00051506,31]
[312721069,1706188935133,-500.0,0.00051506,31]
[312721070,1706188935167,-500.0,0.00051506,31]
[312721071,1706188935207,-500.0,0.00051506,31]
[312721072,1706188935241,-500.0,0.00051506,31]
[312721073,1706188935275,-500.0,0.00051506,31]
[312721074,1706188935308,-500.0,0.00051506,31]
[312721075,1706188935342,-500.0,0.00051506,31]
[312721076,1706188935380,-500.0,0.00051506,31]
[312721077,1706188935414,-500.0,0.00051506,31]
[312721078,1706188935448,-500.0,0.00051506,31]
[312721079,1706188935481,-500.0,0.00051506,31]
[312721080,1706188935515,-500.0,0.00051506,31]
[312721081,1706188935550,-500.0,0.00051506,31]
[312721082,1706188935584,-622.82,0.00051506,31]
[312721083,1706188935618,-848.34,0.00051506,31]
[312721084,1706188935650,-500.0,0.00051506,31]
[312721085,1706188935682,-500.0,0.00051506,31]
[312721086,1706188935715,-500.0,0.00051506,31]
[312721087,1706188935747,-692.14,0.00051506,31]
[312721088,1706188935779,-500.0,0.00051506,31]
[312721089,1706188935810,-500.0,0.00051506,31]
[312721090,1706188935843,-500.0,0.00051506,31]
[312721091,1706188935875,-531.51,0.00051506,31]
[312721092,1706188935908,-723.91,0.00051506,31]
[312721093,1706188935940,-500.0,0.00051506,31]
[312721094,1706188935972,-500.0,0.00051506,31]
[312721095,1706188936005,-500.0,0.00051506,31]
[312721096,1706188936038,-500.0,0.00051506,31]
[312721097,1706188936071,-500.0,0.00051506,31]
[312721098,1706188936107,-500.0,0.00051506,31]
[312721099,1706188936142,-500.0,0.00051506,31]
[312721100,1706188936177,-500.0,0.00051506,31]
[312721101,1706188936211,-500.0,0.00051506,31]
[312721102,1706188936245,-500.0,0.00051506,31]
[312721103,1706188936280,-500.0,0.00051506,31]
[312721104,1706188936316,-500.0,0.00051506,31]
[312721105,1706188936349,-500.0,0.00051506,31]
[312721106,1706188936384,-500.0,0.00051506,31]
[312721107,1706188936418,-500.0,0.00051506,31]
[312721108,1706188936452,-500.0,0.00051506,31]
[312721109,1706188936484,-500.0,0.00051506,31]
[312721110,1706188936518,-500.0,0.00051506,31]
[312721111,1706188936551,-518.42,0.00051506,31]
[312721112,1706188936585,-500.0,0.00051506,31]
[312721113,1706188936617,-556.54,0.00051506,31]
[312721114,1706188936651,-500.0,0.00051506,31]
[312721115,1706188936684,-500.0,0.00051506,31]
[312721116,1706188936717,-500.0,0.00051506,31]
[312721117,1706188936750,-500.0,0.00051506,31]
[312721118,1706188936783,-250.0,0.00051506,31]
[312721119,1706188936815,-500.0,0.00051506,31]
[312721120,1706188936847,-500.0,0.00051506,31]
[312721121,1706188936881,-568.52,0.00051506,31]
[312721122,1706188936913,-653.44,0.00051506,31]
[312721123,1706188936945,-500.0,0.00051506,31]
[312721124,1706188936978,-500.0,0.00051506,31]
[312721125,1706188937009,-500.0,0.00051506,31]
[312721126,1706188937042,-500.0,0.00051506,31]
[312721127,1706188937075,-444.01667907,0.00051506,31]
[312721128,1706188937111,-500.0,0.00051506,31]
[312721129,1706188937144,-500.0,0.00051506,31]
[312721130,1706188937178,-500.0,0.00051506,31]
[312721131,1706188937211,-628.96,0.00051506,31]
[312721132,1706188937417,-500.0,0.00051506,31]
[312721133,1706188937455,-523.72,0.00051506,31]
[312721134,1706188937492,-500.0,0.00051506,31]
[312721135,1706188937527,-500.0,0.00051506,31]
[312721136,1706188937561,-899.54,0.00051506,31]
[312721137,1706188937593,-500.0,0.00051506,31]
[312721138,1706188937626,-500.0,0.00051506,31]
[312721139,1706188937661,-500.0,0.00051506,31]
[312721140,1706188937695,-500.0,0.00051506,31]
[312721141,1706188937728,-500.0,0.00051506,31]
[312721142,1706188937761,-344.96201658,0.00051506,31]
[312721143,1706188937794,-500.0,0.00051506,31]
[312721144,1706188937827,-500.0,0.00051506,31]
[312721145,1706188937860,-500.0,0.00051506,31]
[312721146,1706188937894,-500.0,0.00051506,31]
[312721147,1706188937926,-500.0,0.00051506,31]
[312721148,1706188937959,-500.0,0.00051506,31]
[312721149,1706188937991,-528.11,0.00051506,31]
[312721150,1706188938023,-500.0,0.00051506,31]
[312721151,1706188938055,-500.0,0.00051506,31]
[312721152,1706188938087,-1037.12,0.00051506,31]
[312721153,1706188938120,-500.0,0.00051506,31]
[312721154,1706188938153,-500.0,0.00051506,31]
[312721155,1706188938187,-500.0,0.00051506,31]
[312721156,1706188938220,-500.0,0.00051506,31]
[312721157,1706188938253,-500.0,0.00051506,31]
[312721158,1706188938286,-500.0,0.00051506,31]
[312721159,1706188938321,-500.0,0.00051506,31]
[312721160,1706188938353,-500.0,0.00051506,31]
[312721161,1706188938387,-500.0,0.00051506,31]
[312721162,1706188938421,-500.0,0.00051506,31]
[312721163,1706188938457,-500.0,0.00051506,31]
[312721164,1706188938493,-500.0,0.00051506,31]
[312721165,1706188938528,-500.0,0.00051506,31]
[312721166,1706188938563,-500.0,0.00051506,31]
[312721167,1706188938595,-500.0,0.00051506,31]
[312721168,1706188938628,-500.0,0.00051506,31]
[312721169,1706188938660,-500.0,0.00051506,31]
[312721170,1706188938693,-500.0,0.00051506,31]
[312721171,1706188938725,-500.0,0.00051506,31]
[312721172,1706188938758,-500.0,0.00051506,31]
[312721173,1706188938791,-500.0,0.00051506,31]
[312721174,1706188938823,-500.0,0.00051506,31]
[312721175,1706188938855,-500.0,0.00051506,31]
[312721176,1706188938889,-500.0,0.00051506,31]
[312721177,1706188938920,-500.0,0.00051506,31]
[312721178,1706188938952,-500.0,0.00051506,31]
[312721179,1706188938985,-500.0,0.00051506,31]
[312721180,1706188939017,-500.0,0.00051506,31]
[312721181,1706188939049,-500.0,0.00051506,31]
[312721182,1706188939082,-500.0,0.00051506,31]
[312721183,1706188939116,-500.0,0.00051506,31]
[312721184,1706188939149,-500.0,0.00051506,31]
[312721185,1706188939182,-500.0,0.00051506,31]
[312721186,1706188939214,-500.0,0.00051506,31]
[312721187,1706188939248,-533.46,0.00051506,31]
[312721188,1706188939283,-501.9,0.00051506,31]
[312721189,1706188939319,-1106.47,0.00051506,31]
[312721190,1706188939353,-500.0,0.00051506,31]
[312721191,1706188939386,-500.0,0.00051506,31]
[312721192,1706188939420,-500.0,0.00051506,31]
[312721193,1706188939453,-500.0,0.00051506,31]
[312721194,1706188939485,-500.0,0.00051506,31]
[312721195,1706188939519,-500.0,0.00051506,31]
[312721196,1706188939552,-500.0,0.00051506,31]
[312721197,1706188939584,-3932.94,0.00051506,30]
[312721198,1706188939615,-500.0,0.00051506,31]
[312721199,1706188939647,-500.0,0.00051506,31]
[312721200,1706188939679,-553.31,0.00051506,31]
[312721201,1706188939711,-500.0,0.00051506,31]
[312721202,1706188939743,-500.0,0.00051506,31]
[312721203,1706188939774,-1880.79,0.00051506,31]
[312721204,1706188939806,-582.46,0.00051506,31]
[312721205,1706188939840,-500.0,0.00051506,31]
[312721206,1706188939872,-500.0,0.00051506,31]
[312721207,1706188939905,-500.0,0.00051506,31]
[312721208,1706188939937,-500.0,0.00051506,31]
[312721209,1706188939970,-3956.45,0.00051506,31]
[312721210,1706188940027,-500.0,0.00051506,31]
[312721211,1706188940068,-500.0,0.00051506,31]
[312721212,1706188940116,-500.0,0.00051506,31]
[312721213,1706188940162,-500.0,0.00051506,31]
[312721214,1706188940203,-500.0,0.00051506,31]
[312721215,1706188940241,-500.0,0.00051506,31]
[312721216,1706188940279,-500.0,0.00051506,31]
[312721217,1706188940316,-500.0,0.00051506,31]
[312721218,1706188940354,-500.0,0.00051506,31]
[312721219,1706188940395,-500.0,0.00051506,31]
[312721220,1706188940430,-500.0,0.00051506,31]
[312721221,1706188940465,-678.41,0.00051506,31]
[312721222,1706188940500,-500.0,0.00051506,31]
[312721223,1706188940535,-500.0,0.00051506,31]
[312721224,1706188940569,-500.0,0.00051506,31]
[312721225,1706188940601,-645.74099927,0.00051506,31]
[312721226,1706188940637,-500.0,0.00051506,31]
[312721227,1706188940670,-500.0,0.00051506,31]
[312721228,1706188940702,-500.0,0.00051506,31]
[312721229,1706188940735,-500.0,0.00051506,31]
[312721230,1706188940768,-549.93,0.00051506,31]
[312721231,1706188940800,-500.0,0.00051506,31]
[312721232,1706188940833,-500.0,0.00051506,31]
[312721233,1706188940867,-679.41,0.00051506,31]
[312721234,1706188940903,-500.0,0.00051506,31]
[312721235,1706188940936,-509.93,0.00051506,31]
[312721236,1706188941128,-500.0,0.00051506,31]
[312721237,1706188941166,-343.7207004,0.00051506,31]
[312721238,1706188941204,-500.0,0.00051506,31]
[312721239,1706188941241,-500.0,0.00051506,31]
[312721240,1706188941277,-192.2,0.00051506,31]
[312721241,1706188941311,-500.0,0.00051506,31]
[312721242,1706188941344,-500.0,0.00051506,31]
[312721243,1706188941378,-500.0,0.00051506,31]
[312721244,1706188941410,-500.0,0.00051506,31]
[312721245,1706188941443,-500.0,0.00051506,31]
[312721246,1706188941479,-500.0,0.00051506,31]
[312721247,1706188941513,-1090.07,0.00051506,31]
[312721248,1706188941550,-500.0,0.00051506,31]
[312721249,1706188941586,-521.96,0.00051506,31]
[312721250,1706188941621,-684.55,0.00051506,31]
[312721251,1706188941656,-500.0,0.00051506,31]
[312721252,1706188941691,-500.0,0.00051506,31]
[312721253,1706188941723,-500.0,0.00051506,31]
[312721254,1706188941755,-500.0,0.00051506,31]
[312721255,1706188941791,-500.0,0.00051506,31]
[312721256,1706188941826,-557.35,0.00051506,31]
[312721257,1706188941861,-500.0,0.00051506,31]
[312721258,1706188941894,-500.0,0.00051506,31]
[312721259,1706188941927,-500.0,0.00051506,31]
[312721260,1706188941960,-500.0,0.00051506,31]
[312721261,1706188941992,-753.41,0.00051506,31]
[312721262,1706188942027,-500.0,0.00051506,31]
[312721263,1706188942060,-500.0,0.00051506,31]
[312721264,1706188942097,-500.0,0.00051506,31]
[312721265,1706188942132,-500.0,0.00051506,31]
[312721266,1706188942168,-500.0,0.00051506,31]
[312721267,1706188942203,-500.0,0.00051506,31]
[312721268,1706188942239,-761.84,0.00051506,31]
[312721269,1706188942273,-500.0,0.00051506,31]
[312721270,1706188942307,-507.48,0.00051506,31]
[312721271,1706188942344,-259.69799791,0.00051506,31]
[312721272,1706188942380,-500.0,0.00051506,31]
[312721273,1706188942415,-500.0,0.00051506,31]
[312721274,1706188942452,-498.77879837,0.00051506,31]
[312721275,1706188942487,-500.0,0.00051506,31]
[312721276,1706188942523,-500.0,0.00051506,31]
[312721277,1706188942557,-1413.36,0.00051506,31]
[312721278,1706188942592,-1123.79,0.00051506,31]
[312721279,1706188942627,-500.0,0.00051506,31]
[312721280,1706188942664,-500.0,0.00051506,31]
[312721281,1706188942699,-500.0,0.00051506,31]
[312721282,1706188942735,-500.0,0.00051506,31]
[312721283,1706188942769,-2527.99,0.00051506,31]
[312721284,1706188942801,-500.0,0.00051506,31]
[312721285,1706188942836,-2252.57,0.00051506,31]
[312721286,1706188942875,-500.0,0.00051506,31]
[312721287,1706188942911,-500.0,0.00051506,31]
[312721288,1706188942948,-4785.39,0.00051506,31]
[312721289,1706188942982,-681.67,0.00051506,31]
[312721290,1706188943015,-757.11,0.00051506,31]
[312721291,1706188943048,-500.0,0.00051506,31]
[312721292,1706188943084,-500.0,0.00051506,31]
[312721293,1706188943120,-578.13,0.00051506,31]
[312721294,1706188943154,-500.0,0.00051506,31]
[312721295,1706188943188,-1195.74,0.00051506,31]
[312721296,1706188943224,-646.08,0.00051506,31]
[312721297,1706188943259,-500.0,0.00051506,31]
[312721298,1706188943292,-500.0,0.00051506,31]
[312721299,1706188943324,-668.94,0.00051506,31]
[312721300,1706188943356,-500.0,0.00051506,31]
[312721301,1706188943391,-500.0,0.00051506,31]
[312721302,1706188943425,-500.0,0.00051506,31]
[312721303,1706188943460,-500.0,0.00051506,31]
[312721304,1706188943492,-500.0,0.00051506,31]
[312721305,1706188943526,-624.44,0.00051506,31]
[312721306,1706188943558,-500.0,0.00051506,31]
[312721307,1706188943591,-500.0,0.00051506,31]
[312721308,1706188943623,-500.0,0.00051506,31]
[312721309,1706188943655,-500.0,0.00051506,31]
[312721310,1706188943688,-500.0,0.00051506,31]
[312721311,1706188943720,-664.74,0.00051506,31]
[312721312,1706188943752,-500.0,0.00051506,31]
[312721313,1706188943784,-552.93,0.00051506,31]
[312721314,1706188943816,-500.0,0.00051506,31]
[312721315,1706188943848,-569.49,0.00051506,31]
[312721316,1706188943880,-651.62,0.00051506,31]
[312721317,1706188943912,-538.01,0.00051506,31]
[312721318,1706188943943,-567.83,0.00051506,31]
[312721319,1706188943975,-3543.8,0.00051506,31]
[312721320,1706188944006,-500.0,0.00051506,31]
[312721321,1706188944037,-500.0,0.00051506,31]
[312721322,1706188944069,-500.0,0.00051506,31]
[312721323,1706188944102,-500.0,0.00051506,31]
[312721324,1706188944135,-500.0,0.00051506,31]
[312721325,1706188944167,-500.0,0.00051506,31]
[312721326,1706188944199,-500.0,0.00051506,31]
[312721327,1706188944234,-500.0,0.00051506,31]
[312721328,1706188944270,-594.79,0.00051506,31]
[312721329,1706188944307,-500.0,0.00051506,31]
[312721330,1706188944343,-611.77,0.00051506,31]
[312721331,1706188944378,-502.34,0.00051506,31]
[312721332,1706188944412,-500.0,0.00051506,31]
[312721333,1706188944447,-513.18,0.00051506,31]
[312721334,1706188944484,-591.91,0.00051506,31]
[312721335,1706188944518,-549.63,0.00051506,31]
[312721336,1706188944554,-500.0,0.00051506,31]
[312721337,1706188944589,-500.0,0.00051506,31]
[312721338,1706188944623,-892.35,0.00051506,31]
[312721339,1706188944658,-565.29,0.00051506,31]
[312721340,1706188944840,-500.0,0.00051506,31]
[312721341,1706188944873,-500.0,0.00051506,31]
[312721342,1706188944905,-500.0,0.00051506,31]
[312721343,1706188944938,-500.0,0.00051506,31]
[312721344,1706188944971,-696.05,0.00051506,31]
[312721345,1706188945003,-500.0,0.00051506,31]
[312721346,1706188945036,-503.96,0.00051506,31]
[312721347,1706188945069,-500.0,0.00051506,31]
[312721348,1706188945103,-1045.18,0.00051506,31]
[312721349,1706188945136,-500.0,0.00051506,31]
[312721350,1706188945168,-500.0,0.00051506,31]
[312721351,1706188945203,-505.83,0.00051506,31]
[312721352,1706188945238,-500.0,0.00051506,31]
[312721353,1706188945271,-569.95,0.00051506,31]
[312721354,1706188945303,-616.19,0.00051506,31]
[312721355,1706188945335,-500.0,0.00051506,31]
[312721356,1706188945368,-500.0,0.00051506,31]
[312721357,1706188945401,-1085.14,0.00051506,31]
[312721358,1706188945433,-740.01,0.00051506,31]
[312721359,1706188945467,-8322.88,0.00051506,31]